[Event "9th RTU Rapid 2019"]
[Site "Riga"]
[Date "2019.08.04"]
[Round "8.18"]
[White "Kopylov, Daniel"]
[Black "Miedema, David"]
[Result "1-0"]
[ECO "C01"]
[WhiteElo "2103"]
[BlackElo "2313"]
[Annotator "NA"]
[PlyCount "77"]
[EventDate "2019.08.05"]
[EventType "swiss"]
[EventCountry "LAT"]
[SourceTitle "playchess.com"]
[Source "ChessBase"]
[SourceQuality "1"]
[TimeControl "5400+30"]

1. e4 {[%emt 1:15:23]} e6 {[%emt 1:15:21]} 2. d4 {[%emt 0:00:29]} d5 {[%emt 0:00:25]} 3. exd5 {[%emt 0:00:29]} exd5 {[%emt 0:00:26]} 4. Nf3 {[%emt 0:00:26]} Nf6 {[%emt 0:00:26]} 5. Bd3 {[%emt 0:00:35]} Bd6 {[%emt 0:00:26]} 6. Qe2+ {[%emt 0:00:27]} Qe7 {[%emt 0:00:28]} 7. Qxe7+ {[%emt 0:00:27]} Kxe7 {[%emt 0:00:26]} 8. O-O {[%emt 0:00:52]} h6 {[%emt 0:00:29]} 9. Re1+ {[%emt 0:00:30]} Be6 {[%emt 0:00:27]} 10. c4 {[%emt 0:00:37]} dxc4 {[%emt 0:00:34]} 11. Bxc4 {[%emt 0:00:32]} Nbd7 {[%emt 0:00:50]} 12. Nh4 {[%emt 0:02:11]} Nb6 {[%emt 0:00:41]} 13. Bxe6 {[%emt 0:00:33]} fxe6 {[%emt 0:00:28]} 14. Ng6+ {[%emt 0:00:30]} Kf7 {[%emt 0:00:33]} 15. Nxh8+ {[%emt 0:00:27]} Rxh8 {[%emt 0:00:25]} 16. Nc3 {[%emt 0:00:28]} Rd8 {[%emt 0:00:41]} 17. Be3 {[%emt 0:01:10]} Bb4 {[%emt 0:00:46]} 18. Rac1 {[%emt 0:00:34]} c6 {[%emt 0:00:26]} 19. a3 {[%emt 0:01:17]} Bf8 {[%emt 0:00:27]} 20. h3 {[%emt 0:01:40]} Nc4 {[%emt 0:00:52]} 21. Re2 {[%emt 0:00:48]} a5 {[%emt 0:00:50]} 22. Rce1 {[%emt 0:01:00]} b5 {[%emt 0:01:31]} 23. Bc1 {[%emt 0:01:23]} b4 {[%emt 0:00:26]} 24. axb4 {[%emt 0:00:32]} axb4 {[%emt 0:00:26]} 25. Na4 {[%emt 0:00:32]} Rd6 {[%emt 0:01:31]} 26. Nc5 {[%emt 0:00:36]} Rd5 {[%emt 0:02:08]} 27. Nxe6 {[%emt 0:00:48]} Bd6 {[%emt 0:00:27]} 28. Nd8+ {[%emt 0:00:46]} Kf8 {[%emt 0:00:38]} 29. Nxc6 {[%emt 0:00:32]} b3 {[%emt 0:00:27]} 30. Ne5 {[%emt 0:02:07]} Rxd4 {[%emt 0:00:26]} 31. Nxc4 {[%emt 0:00:47]} Rxc4 {[%emt 0:00:25]} 32. Re3 {[%emt 0:00:44]} Rb4 {[%emt 0:01:42]} 33. Re6 {[%emt 0:00:42]} Bb8 {[%emt 0:01:09]} 34. Bxh6 {[%emt 0:00:41]} Kf7 {[%emt 0:00:34]} 35. Re7+ {[%emt 0:01:08]} Kg6 {[%emt 0:00:26]} 36. Bxg7 {[%emt 0:00:45]} Nd5 {[%emt 0:00:26]} 37. R1e6+ {[%emt 0:00:42]} Kh7 {[%emt 0:00:34]} 38. Rh6+ {[%emt 0:00:37]} Kg8 {[%emt 0:00:27]} 39. Rh8# {[%emt 0:00:28]} 1-0

[Event "9th RTU Rapid 2019"]
[Site "Riga"]
[Date "2019.08.04"]
[Round "8.19"]
[White "Golubovskis, Maksims"]
[Black "Dubrovin, Robert"]
[Result "0-1"]
[ECO "E67"]
[WhiteElo "2081"]
[BlackElo "2282"]
[Annotator "NA"]
[PlyCount "70"]
[EventDate "2019.08.05"]
[EventType "swiss"]
[EventCountry "LAT"]
[SourceTitle "playchess.com"]
[Source "ChessBase"]
[SourceQuality "1"]
[TimeControl "5400+30"]

1. Nf3 {[%emt 1:15:22]} Nf6 {[%emt 1:15:21]} 2. c4 {[%emt 0:00:34]} g6 {[%emt 0:00:26]} 3. g3 {[%emt 0:00:26]} Bg7 {[%emt 0:00:26]} 4. Bg2 {[%emt 0:00:26]} O-O {[%emt 0:00:26]} 5. O-O {[%emt 0:00:26]} d6 {[%emt 0:00:25]} 6. Nc3 {[%emt 0:00:33]} e5 {[%emt 0:00:27]} 7. d4 {[%emt 0:00:26]} Nbd7 {[%emt 0:00:35]} 8. b3 {[%emt 0:01:07]} Re8 {[%emt 0:00:33]} 9. dxe5 {[%emt 0:01:14]} dxe5 {[%emt 0:00:32]} 10. e4 {[%emt 0:03:47]} c6 {[%emt 0:00:27]} 11. Qe2 {[%emt 0:00:49]} a5 {[%emt 0:01:53]} 12. Ba3 {[%emt 0:01:07]} Bf8 {[%emt 0:01:30]} 13. Bb2 {[%emt 0:01:42]} Nc5 {[%emt 0:00:47]} 14. Rfd1 {[%emt 0:00:44]} Qc7 {[%emt 0:00:25]} 15. h3 {[%emt 0:00:46]} a4 {[%emt 0:02:19]} 16. Qc2 {[%emt 0:01:33]} Qb6 {[%emt 0:03:21]} 17. bxa4 {[%emt 0:01:16]} Nfd7 {[%emt 0:00:40]} 18. Bc1 {[%emt 0:00:55]} Qa6 {[%emt 0:00:32]} 19. Qe2 {[%emt 0:01:41]} Nxa4 {[%emt 0:00:40]} 20. Nxa4 {[%emt 0:00:28]} Qxa4 {[%emt 0:00:25]} 21. Be3 {[%emt 0:00:53]} Nc5 {[%emt 0:01:04]} 22. Nd2 {[%emt 0:01:07]} Be6 {[%emt 0:00:26]} 23. Rdc1 {[%emt 0:00:27]} Rad8 {[%emt 0:00:32]} 24. Nb3 {[%emt 0:01:35]} Qa3 {[%emt 0:02:24]} 25. Nxc5 {[%emt 0:00:37]} Bxc5 {[%emt 0:00:27]} 26. Bxc5 Qxc5 27. Rab1 Rd7 {[%emt 0:01:09]} 28. Bf1 {[%emt 0:01:33]} Red8 {[%emt 0:00:29]} 29. Rc2 {[%emt 0:01:01]} Qa5 {[%emt 0:02:11]} 30. Rcb2 {[%emt 0:01:09]} Qa7 {[%emt 0:02:00]} 31. Kh2 {[%emt 0:00:43]} h5 {[%emt 0:00:33]} 32. c5 {[%emt 0:00:40]} Qxc5 {[%emt 0:00:28]} 33. Rxb7 {[%emt 0:00:29]} Rd2 {[%emt 0:00:29]} 34. Qe1 {[%emt 0:00:53]} Rxf2+ {[%emt 0:00:32]} 35. Kh1 {[%emt 0:00:35]} Rdd2 {[%emt 0:00:30]} 0-1

[Event "9th RTU Rapid 2019"]
[Site "Riga"]
[Date "2019.08.04"]
[Round "8.20"]
[White "Shashnev, Pavel"]
[Black "Afanasiev, Vadim"]
[Result "1/2-1/2"]
[ECO "C45"]
[WhiteElo "2021"]
[BlackElo "2241"]
[Annotator "NA"]
[PlyCount "155"]
[EventDate "2019.08.05"]
[EventType "swiss"]
[EventCountry "LAT"]
[SourceTitle "playchess.com"]
[Source "ChessBase"]
[SourceQuality "1"]
[TimeControl "5400+30"]

1. e4 {[%emt 1:15:21]} e5 {[%emt 1:15:35]} 2. Nf3 {[%emt 0:00:27]} Nc6 {[%emt 0:00:26]} 3. d4 {[%emt 0:00:26]} exd4 {[%emt 0:00:27]} 4. Nxd4 {[%emt 0:00:27]} Bc5 {[%emt 0:00:27]} 5. Be3 {[%emt 0:00:28]} Qf6 {[%emt 0:00:28]} 6. c3 {[%emt 0:00:26]} b6 {[%emt 0:00:32]} 7. Qd2 {[%emt 0:01:29]} Bb7 {[%emt 0:00:34]} 8. b4 {[%emt 0:01:20]} Bxd4 {[%emt 0:01:42]} 9. cxd4 {[%emt 0:00:33]} Qg6 {[%emt 0:01:43]} 10. f3 {[%emt 0:00:54]} Nge7 {[%emt 0:03:51]} 11. b5 {[%emt 0:04:57]} Na5 {[%emt 0:00:43]} 12. Bd3 {[%emt 0:00:28]} d5 {[%emt 0:01:49]} 13. O-O {[%emt 0:05:02]} O-O {[%emt 0:01:11]} 14. Qc2 {[%emt 0:01:40]} Qe6 {[%emt 0:02:56]} 15. Nc3 {[%emt 0:02:30]} f5 {[%emt 0:01:57]} 16. Rae1 {[%emt 0:01:23]} f4 {[%emt 0:01:50]} 17. Bf2 {[%emt 0:00:32]} Qd7 {[%emt 0:01:06]} 18. exd5 {[%emt 0:00:30]} g6 {[%emt 0:00:29]} 19. Be4 {[%emt 0:00:29]} Nc4 {[%emt 0:00:49]} 20. d6 {[%emt 0:00:32]} Nxd6 {[%emt 0:00:48]} 21. Bxb7 {[%emt 0:00:27]} Nxb7 {[%emt 0:00:25]} 22. Qe4 {[%emt 0:00:27]} Rf7 {[%emt 0:01:04]} 23. Qxb7 {[%emt 0:00:27]} Rd8 {[%emt 0:00:26]} 24. Qe4 {[%emt 0:00:28]} Nf5 {[%emt 0:00:26]} 25. Qe6 {[%emt 0:00:35]} Nxd4 {[%emt 0:00:35]} 26. Qxd7 {[%emt 0:00:31]} Rfxd7 {[%emt 0:00:29]} 27. Bxd4 {[%emt 0:00:32]} Rxd4 {[%emt 0:00:26]} 28. Rd1 {[%emt 0:00:26]} Kf7 {[%emt 0:00:32]} 29. Rxd4 {[%emt 0:00:32]} Rxd4 {[%emt 0:00:26]} 30. Rd1 {[%emt 0:00:26]} Rc4 {[%emt 0:00:26]} 31. Rd3 {[%emt 0:00:34]} Ke6 {[%emt 0:00:29]} 32. Kf2 {[%emt 0:00:27]} Rb4 {[%emt 0:00:29]} 33. Ke2 {[%emt 0:00:33]} g5 {[%emt 0:00:29]} 34. Rd2 {[%emt 0:00:33]} Rc4 {[%emt 0:00:32]} 35. Rd3 {[%emt 0:00:26]} Rb4 {[%emt 0:00:26]} 36. Nd5 {[%emt 0:00:26]} Rc4 {[%emt 0:00:31]} 37. Kd2 {[%emt 0:00:32]} Rc5 {[%emt 0:00:30]} 38. Nc3 {[%emt 0:00:27]} h6 {[%emt 0:00:38]} 39. Rd8 {[%emt 0:00:29]} Rc4 {[%emt 0:00:38]} 40. Rh8 {[%emt 0:00:34]} Rd4+ {[%emt 0:00:27]} 41. Kc2 {[%emt 0:00:27]} Kf5 {[%emt 0:00:30]} 42. Rxh6 {[%emt 0:00:28]} Rd7 {[%emt 0:00:33]} 43. Rh8 {[%emt 0:00:29]} Re7 {[%emt 0:00:33]} 44. Ra8 {[%emt 0:00:28]} Rh7 {[%emt 0:00:26]} 45. Rf8+ {[%emt 0:00:45]} Ke5 {[%emt 0:00:26]} 46. Rg8 {[%emt 0:00:26]} Kf5 {[%emt 0:00:32]} 47. Ne4 {[%emt 0:00:26]} Rxh2 {[%emt 0:00:29]} 48. Rxg5+ {[%emt 0:00:27]} Ke6 {[%emt 0:00:25]} 49. Kd3 {[%emt 0:00:27]} Rh1 {[%emt 0:00:27]} 50. Rg7 {[%emt 0:00:31]} Rc1 {[%emt 0:00:29]} 51. Nc3 {[%emt 0:00:33]} Kd6 {[%emt 0:00:35]} 52. Rf7 {[%emt 0:00:27]} Rg1 {[%emt 0:00:27]} 53. Rxf4 {[%emt 0:00:27]} Rxg2 {[%emt 0:00:26]} 54. Rd4+ {[%emt 0:00:35]} Ke6 {[%emt 0:00:27]} 55. Re4+ {[%emt 0:00:29]} Kd6 {[%emt 0:00:26]} 56. f4 {[%emt 0:00:35]} Rf2 {[%emt 0:00:35]} 57. Ke3 {[%emt 0:00:34]} Rc2 {[%emt 0:00:28]} 58. Kd3 {[%emt 0:00:29]} Rf2 {[%emt 0:00:26]} 59. Ra4 {[%emt 0:00:28]} Rf3+ {[%emt 0:00:29]} 60. Kc2 {[%emt 0:00:29]} c6 {[%emt 0:00:39]} 61. bxc6 {[%emt 0:00:28]} Kxc6 {[%emt 0:00:26]} 62. Re4 {[%emt 0:00:38]} b5 {[%emt 0:00:45]} 63. Kb3 {[%emt 0:00:31]} a5 {[%emt 0:00:28]} 64. Kc2 {[%emt 0:00:30]} Rf2+ {[%emt 0:00:35]} 65. Re2 {[%emt 0:00:25]} Rxf4 {[%emt 0:00:00]} 66. Re6+ {[%emt 0:00:28]} Kc5 {[%emt 0:00:00]} 67. Re5+ {[%emt 0:00:27]} Kc4 {[%emt 0:00:00]} 68. Re4+ {[%emt 0:00:33]} Rxe4 {[%emt 0:00:25]} 69. Nxe4 {[%emt 0:00:27]} Kd4 {[%emt 0:01:35]} 70. Nd2 {[%emt 0:00:36]} Kd5 {[%emt 0:01:00]} 71. Kc3 {[%emt 0:00:31]} Kc5 {[%emt 0:00:30]} 72. Nb3+ {[%emt 0:00:29]} Kb6 {[%emt 0:00:26]} 73. Kd4 {[%emt 0:00:31]} a4 {[%emt 0:00:33]} 74. Nc5 {[%emt 0:00:31]} Ka5 {[%emt 0:00:28]} 75. Nb7+ {[%emt 0:00:28]} Kb4 {[%emt 0:00:27]} 76. Nd6 {[%emt 0:00:27]} Ka3 {[%emt 0:00:27]} 77. Nxb5+ {[%emt 0:00:29]} Kxa2 {[%emt 0:00:26]} 78. Nc3+ {[%emt 0:00:01]} 1/2-1/2

[Event "9th RTU Rapid 2019"]
[Site "Riga"]
[Date "2019.08.04"]
[Round "8.21"]
[White "Damen, Jip"]
[Black "Smirnova, Ekaterina"]
[Result "1/2-1/2"]
[ECO "C01"]
[WhiteElo "2179"]
[BlackElo "2134"]
[Annotator "NA"]
[PlyCount "78"]
[EventDate "2019.08.05"]
[EventType "swiss"]
[EventCountry "LAT"]
[SourceTitle "playchess.com"]
[Source "ChessBase"]
[SourceQuality "1"]
[TimeControl "5400+30"]

1. e4 {[%emt 1:15:21]} e6 {[%emt 1:15:20]} 2. d4 {[%emt 0:00:30]} d5 {[%emt 0:00:27]} 3. Nc3 {[%emt 0:00:26]} Bb4 {[%emt 0:00:26]} 4. exd5 {[%emt 0:00:38]} exd5 {[%emt 0:00:27]} 5. Bd3 {[%emt 0:00:26]} Ne7 {[%emt 0:00:31]} 6. Nge2 {[%emt 0:00:26]} Bf5 {[%emt 0:00:40]} 7. a3 {[%emt 0:00:27]} Bxd3 {[%emt 0:00:52]} 8. Qxd3 {[%emt 0:00:38]} Bxc3+ {[%emt 0:00:41]} 9. Qxc3 {[%emt 0:00:28]} c6 {[%emt 0:00:41]} 10. O-O {[%emt 0:01:17]} Nd7 {[%emt 0:00:31]} 11. Bg5 {[%emt 0:00:35]} f6 {[%emt 0:00:59]} 12. Bf4 {[%emt 0:00:26]} O-O {[%emt 0:00:58]} 13. Rfe1 {[%emt 0:00:27]} Ng6 {[%emt 0:00:34]} 14. Qb4 {[%emt 0:01:39]} Re8 {[%emt 0:02:44]} 15. Bg3 {[%emt 0:00:51]} Qb6 {[%emt 0:00:41]} 16. Qc3 {[%emt 0:01:02]} Re6 {[%emt 0:01:05]} 17. Nf4 {[%emt 0:01:55]} Nxf4 {[%emt 0:00:31]} 18. Bxf4 {[%emt 0:00:26]} Rae8 {[%emt 0:00:54]} 19. g3 {[%emt 0:01:38]} Nf8 {[%emt 0:01:33]} 20. Bd6 {[%emt 0:00:29]} Ng6 {[%emt 0:01:54]} 21. Bc5 {[%emt 0:00:38]} Qc7 {[%emt 0:00:55]} 22. Rxe6 {[%emt 0:00:56]} Rxe6 {[%emt 0:00:26]} 23. Re1 {[%emt 0:00:26]} Rxe1+ {[%emt 0:00:38]} 24. Qxe1 {[%emt 0:00:27]} Kf7 {[%emt 0:00:27]} 25. h4 {[%emt 0:01:00]} b6 {[%emt 0:00:57]} 26. Bb4 {[%emt 0:00:26]} a5 {[%emt 0:00:33]} 27. Bd2 {[%emt 0:00:38]} Qe7 {[%emt 0:00:37]} 28. Be3 {[%emt 0:01:06]} Qe4 {[%emt 0:00:30]} 29. Qc3 {[%emt 0:00:36]} Ne7 {[%emt 0:00:31]} 30. Bf4 {[%emt 0:01:05]} a4 {[%emt 0:03:17]} 31. Bd6 {[%emt 0:01:58]} Nf5 {[%emt 0:00:33]} 32. Qxc6 {[%emt 0:00:34]} Qe1+ {[%emt 0:00:44]} 33. Kg2 {[%emt 0:00:28]} Qe4+ {[%emt 0:00:30]} 34. Kh2 {[%emt 0:01:23]} Nxd6 {[%emt 0:00:34]} 35. Qxd6 {[%emt 0:00:30]} Qxd4 {[%emt 0:00:27]} 36. Qd7+ {[%emt 0:01:17]} Kf8 {[%emt 0:00:29]} 37. Qd8+ {[%emt 0:01:09]} Kf7 {[%emt 0:00:26]} 38. Qd7+ {[%emt 0:00:46]} Kf8 {[%emt 0:00:26]} 39. Qd8+ {[%emt 0:01:19]} Kf7 {[%emt 0:00:25]} 1/2-1/2

[Event "9th RTU Rapid 2019"]
[Site "Riga"]
[Date "2019.08.04"]
[Round "8.22"]
[White "Alvarado Ascanio, Francisco"]
[Black "Mota, Pankit"]
[Result "0-1"]
[ECO "D12"]
[WhiteElo "2166"]
[BlackElo "1841"]
[Annotator "NA"]
[PlyCount "81"]
[EventDate "2019.08.05"]
[EventType "swiss"]
[EventCountry "LAT"]
[SourceTitle "playchess.com"]
[Source "ChessBase"]
[SourceQuality "1"]
[TimeControl "5400+30"]

1. d4 {[%emt 1:15:21]} d5 {[%emt 1:15:22]} 2. c4 {[%emt 0:00:27]} c6 {[%emt 0:00:27]} 3. e3 {[%emt 0:00:27]} Nf6 {[%emt 0:00:28]} 4. Nc3 {[%emt 0:00:27]} Bf5 {[%emt 0:00:27]} 5. Nf3 {[%emt 0:00:29]} e6 {[%emt 0:00:28]} 6. Nh4 {[%emt 0:00:26]} Bg4 {[%emt 0:00:33]} 7. Qb3 {[%emt 0:00:43]} Qc7 {[%emt 0:01:18]} 8. h3 {[%emt 0:00:45]} Bh5 {[%emt 0:00:28]} 9. g4 {[%emt 0:00:27]} Bg6 {[%emt 0:00:27]} 10. Nxg6 {[%emt 0:00:27]} hxg6 {[%emt 0:00:27]} 11. Bg2 {[%emt 0:00:32]} Be7 {[%emt 0:01:00]} 12. Bd2 {[%emt 0:00:42]} Na6 {[%emt 0:01:05]} 13. a3 {[%emt 0:01:20]} Qb6 {[%emt 0:00:42]} 14. Qxb6 {[%emt 0:02:10]} axb6 {[%emt 0:00:27]} 15. cxd5 {[%emt 0:01:30]} exd5 {[%emt 0:01:29]} 16. O-O {[%emt 0:00:42]} b5 {[%emt 0:01:22]} 17. Rfe1 {[%emt 0:01:23]} O-O {[%emt 0:00:47]} 18. f3 {[%emt 0:01:35]} Rfd8 {[%emt 0:01:11]} 19. Na2 {[%emt 0:01:53]} Nd7 {[%emt 0:01:14]} 20. Rec1 {[%emt 0:00:53]} Re8 {[%emt 0:00:28]} 21. Nb4 {[%emt 0:02:53]} Nxb4 {[%emt 0:00:52]} 22. axb4 {[%emt 0:00:27]} Nb6 {[%emt 0:00:35]} 23. b3 {[%emt 0:00:31]} g5 {[%emt 0:03:32]} 24. Ra5 {[%emt 0:00:42]} Rxa5 {[%emt 0:01:28]} 25. bxa5 {[%emt 0:00:27]} Na8 {[%emt 0:00:44]} 26. a6 {[%emt 0:00:39]} Rb8 {[%emt 0:02:59]} 27. axb7 {[%emt 0:00:44]} Rxb7 {[%emt 0:00:27]} 28. Rxc6 {[%emt 0:00:29]} Nc7 {[%emt 0:00:26]} 29. e4 {[%emt 0:01:12]} Ne6 {[%emt 0:00:44]} 30. Be3 {[%emt 0:01:43]} Bf6 {[%emt 0:00:26]} 31. e5 {[%emt 0:01:09]} Bd8 {[%emt 0:00:33]} 32. Rc8 {[%emt 0:00:58]} Kh7 {[%emt 0:00:26]} 33. f4 {[%emt 0:00:28]} gxf4 {[%emt 0:02:21]} 34. Bxd5 {[%emt 0:00:29]} fxe3 {[%emt 0:00:35]} 35. Bxb7 {[%emt 0:00:33]} Bh4 {[%emt 0:00:48]} 36. Be4+ {[%emt 0:01:15]} g6 {[%emt 0:00:27]} 37. Kf1 {[%emt 0:00:37]} Nxd4 {[%emt 0:00:26]} 38. Bd3 {[%emt 0:00:37]} Nxb3 {[%emt 0:00:41]} 39. Bxb5 {[%emt 0:00:28]} Nd4 {[%emt 0:00:34]} 40. Bc4 {[%emt 0:00:49]} Nf3 {[%emt 0:00:38]} 41. Bxf7 {[%emt 0:00:11]} 0-1

[Event "9th RTU Rapid 2019"]
[Site "Riga"]
[Date "2019.08.04"]
[Round "8.23"]
[White "Jeet, Jain"]
[Black "Low, Kevin"]
[Result "0-1"]
[ECO "B51"]
[WhiteElo "1828"]
[BlackElo "2153"]
[Annotator "NA"]
[PlyCount "72"]
[EventDate "2019.08.05"]
[EventType "swiss"]
[EventCountry "LAT"]
[SourceTitle "playchess.com"]
[Source "ChessBase"]
[SourceQuality "1"]
[TimeControl "5400+30"]

1. e4 {[%emt 1:15:21]} c5 {[%emt 1:15:21]} 2. Nf3 {[%emt 0:00:26]} d6 {[%emt 0:00:25]} 3. Bb5+ {[%emt 0:00:26]} Nc6 {[%emt 0:00:26]} 4. Bxc6+ {[%emt 0:00:29]} bxc6 {[%emt 0:00:27]} 5. O-O {[%emt 0:00:27]} Nf6 {[%emt 0:00:30]} 6. e5 {[%emt 0:01:02]} Nd5 {[%emt 0:03:03]} 7. exd6 {[%emt 0:00:34]} exd6 {[%emt 0:00:32]} 8. Re1+ {[%emt 0:00:28]} Be7 {[%emt 0:00:29]} 9. d4 {[%emt 0:00:29]} cxd4 {[%emt 0:00:45]} 10. Nxd4 {[%emt 0:00:32]} Bd7 {[%emt 0:02:15]} 11. c4 {[%emt 0:00:35]} Nc7 {[%emt 0:01:36]} 12. Qf3 {[%emt 0:01:52]} c5 {[%emt 0:01:07]} 13. Nc6 {[%emt 0:01:36]} Bxc6 {[%emt 0:00:40]} 14. Qxc6+ {[%emt 0:00:27]} Qd7 {[%emt 0:00:27]} 15. Qe4 {[%emt 0:00:31]} O-O {[%emt 0:00:43]} 16. Nc3 {[%emt 0:00:33]} Bf6 {[%emt 0:00:39]} 17. Nd5 {[%emt 0:01:11]} Rae8 {[%emt 0:01:00]} 18. Nxf6+ {[%emt 0:02:41]} gxf6 {[%emt 0:00:26]} 19. Bh6 {[%emt 0:00:29]} Rxe4 20. Rxe4 {[%emt 0:00:26]} Re8 {[%emt 0:01:01]} 21. Rf4 {[%emt 0:00:26]} f5 {[%emt 0:00:40]} 22. Rf3 {[%emt 0:00:30]} Re6 {[%emt 0:00:33]} 23. Bf4 {[%emt 0:00:34]} Qe7 {[%emt 0:00:56]} 24. Kf1 {[%emt 0:00:25]} h5 {[%emt 0:00:45]} 25. Rd1 {[%emt 0:00:31]} Na6 {[%emt 0:00:44]} 26. a3 {[%emt 0:00:39]} Nb8 {[%emt 0:00:30]} 27. Rg3+ {[%emt 0:00:37]} Kf8 {[%emt 0:00:42]} 28. Rg5 {[%emt 0:00:56]} Qf6 {[%emt 0:01:02]} 29. Rxh5 {[%emt 0:00:57]} Nc6 {[%emt 0:00:29]} 30. g3 {[%emt 0:01:22]} Ke8 {[%emt 0:00:50]} 31. Rd2 {[%emt 0:01:00]} Nd4 {[%emt 0:00:37]} 32. b4 {[%emt 0:00:57]} Nf3 {[%emt 0:00:37]} 33. Rd1 {[%emt 0:00:40]} Qc3 {[%emt 0:01:16]} 34. Kg2 {[%emt 0:00:40]} Ne1+ {[%emt 0:00:34]} 35. Kf1 {[%emt 0:02:49]} Qf3 {[%emt 0:00:35]} 36. Rh8+ {[%emt 0:00:29]} Kd7 {[%emt 0:00:26]} 0-1

[Event "9th RTU Rapid 2019"]
[Site "Riga"]
[Date "2019.08.04"]
[Round "8.24"]
[White "Germanovs, Georgijs"]
[Black "Ivanisvili, Andrejs"]
[Result "1-0"]
[ECO "A42"]
[WhiteElo "1911"]
[BlackElo "2144"]
[Annotator "NA"]
[PlyCount "92"]
[EventDate "2019.08.05"]
[EventType "swiss"]
[EventCountry "LAT"]
[SourceTitle "playchess.com"]
[Source "ChessBase"]
[SourceQuality "1"]
[TimeControl "5400+30"]

1. e4 {[%emt 1:15:21]} g6 {[%emt 1:15:39]} 2. d4 {[%emt 0:00:27]} Bg7 {[%emt 0:00:26]} 3. c4 {[%emt 0:00:27]} d6 {[%emt 0:00:32]} 4. Nc3 {[%emt 0:00:28]} Nd7 {[%emt 0:00:27]} 5. f4 {[%emt 0:00:26]} e5 {[%emt 0:00:37]} 6. fxe5 {[%emt 0:00:27]} dxe5 {[%emt 0:00:26]} 7. d5 {[%emt 0:00:27]} Ne7 {[%emt 0:01:32]} 8. Nf3 {[%emt 0:01:51]} O-O {[%emt 0:00:28]} 9. Be2 {[%emt 0:00:27]} f5 {[%emt 0:00:34]} 10. Ng5 {[%emt 0:00:30]} Nf6 {[%emt 0:00:54]} 11. O-O {[%emt 0:00:34]} h6 {[%emt 0:00:49]} 12. Nf3 {[%emt 0:00:26]} f4 {[%emt 0:01:01]} 13. Nxe5 {[%emt 0:00:37]} Nxe4 {[%emt 0:00:57]} 14. Nxg6 {[%emt 0:01:52]} Nxc3 {[%emt 0:00:41]} 15. Nxe7+ {[%emt 0:00:31]} Qxe7 {[%emt 0:00:27]} 16. bxc3 {[%emt 0:00:27]} Bxc3 {[%emt 0:00:34]} 17. Rb1 {[%emt 0:00:27]} Qe5 {[%emt 0:04:33]} 18. Bg4 {[%emt 0:01:42]} Qd4+ {[%emt 0:01:10]} 19. Kh1 {[%emt 0:00:27]} Qxd1 {[%emt 0:01:42]} 20. Bxd1 {[%emt 0:00:28]} Be5 {[%emt 0:01:31]} 21. Bc2 {[%emt 0:00:34]} b6 {[%emt 0:00:41]} 22. Ba3 {[%emt 0:00:52]} Bd6 {[%emt 0:01:11]} 23. Bxd6 {[%emt 0:00:40]} cxd6 {[%emt 0:00:26]} 24. Rbe1 {[%emt 0:00:27]} Bf5 {[%emt 0:00:57]} 25. Bxf5 {[%emt 0:00:31]} Rxf5 {[%emt 0:00:26]} 26. Re6 {[%emt 0:00:32]} Rc8 {[%emt 0:00:34]} 27. Rxh6 {[%emt 0:00:29]} Rxc4 {[%emt 0:00:27]} 28. Rxd6 {[%emt 0:00:27]} Rd4 {[%emt 0:01:04]} 29. Rd8+ {[%emt 0:00:50]} Kg7 {[%emt 0:00:38]} 30. Rd7+ {[%emt 0:00:27]} Kg6 {[%emt 0:00:36]} 31. Rxa7 {[%emt 0:00:46]} Rfxd5 {[%emt 0:00:46]} 32. h3 {[%emt 0:00:28]} Rb5 {[%emt 0:01:28]} 33. Ra6 {[%emt 0:00:58]} Rb2 {[%emt 0:00:35]} 34. a4 {[%emt 0:00:39]} Kg5 {[%emt 0:01:08]} 35. a5 {[%emt 0:00:46]} b5 {[%emt 0:01:05]} 36. Ra8 {[%emt 0:00:40]} Rdd2 {[%emt 0:00:30]} 37. Rg8+ {[%emt 0:00:31]} Kf5 {[%emt 0:00:27]} 38. Rf8+ {[%emt 0:00:28]} Ke5 {[%emt 0:00:27]} 39. Re1+ {[%emt 0:00:47]} Kd4 {[%emt 0:00:57]} 40. Rxf4+ {[%emt 0:00:29]} Kc5 {[%emt 0:00:26]} 41. Rc1+ {[%emt 0:00:35]} Kd6 {[%emt 0:00:27]} 42. Rg4 {[%emt 0:00:28]} Ra2 {[%emt 0:00:31]} 43. a6 {[%emt 0:00:29]} Kd5 {[%emt 0:00:29]} 44. Rg7 {[%emt 0:00:45]} Re2 {[%emt 0:00:35]} 45. a7 {[%emt 0:00:51]} b4 {[%emt 0:00:28]} 46. Rc8 {[%emt 0:00:42]} Re1+ {[%emt 0:00:26]} 1-0

[Event "9th RTU Rapid 2019"]
[Site "Riga"]
[Date "2019.08.04"]
[Round "8.26"]
[White "Nesteretz, Anatoliy"]
[Black "Efremov, Vladislav"]
[Result "1-0"]
[ECO "B47"]
[WhiteElo "2317"]
[BlackElo "1956"]
[Annotator "NA"]
[PlyCount "99"]
[EventDate "2019.08.05"]
[EventType "swiss"]
[EventCountry "LAT"]
[SourceTitle "playchess.com"]
[Source "ChessBase"]
[SourceQuality "1"]
[TimeControl "5400+30"]

1. e4 {[%emt 1:15:24]} c5 {[%emt 1:15:21]} 2. Nf3 {[%emt 0:00:29]} e6 {[%emt 0:00:27]} 3. d4 {[%emt 0:00:30]} cxd4 {[%emt 0:00:26]} 4. Nxd4 {[%emt 0:00:27]} Nc6 {[%emt 0:00:26]} 5. Nc3 {[%emt 0:00:43]} Qc7 {[%emt 0:00:26]} 6. g3 {[%emt 0:01:19]} a6 {[%emt 0:00:27]} 7. Bg2 {[%emt 0:00:33]} Nf6 {[%emt 0:00:27]} 8. O-O {[%emt 0:00:51]} Bc5 {[%emt 0:00:38]} 9. Nxc6 {[%emt 0:00:46]} dxc6 {[%emt 0:00:02]} 10. Na4 {[%emt 0:01:13]} Ba7 {[%emt 0:00:51]} 11. c4 {[%emt 0:00:26]} O-O {[%emt 0:00:28]} 12. c5 {[%emt 0:00:40]} e5 {[%emt 0:00:32]} 13. Bg5 {[%emt 0:01:59]} Qe7 {[%emt 0:01:23]} 14. Qc2 {[%emt 0:00:52]} h6 {[%emt 0:00:35]} 15. Bd2 {[%emt 0:00:39]} Be6 {[%emt 0:00:45]} 16. f4 {[%emt 0:00:43]} exf4 {[%emt 0:01:25]} 17. gxf4 {[%emt 0:00:26]} Nd7 {[%emt 0:01:26]} 18. b4 {[%emt 0:01:24]} f6 {[%emt 0:01:48]} 19. Kh1 {[%emt 0:01:18]} Bb8 {[%emt 0:01:02]} 20. Nc3 {[%emt 0:02:20]} Bc7 {[%emt 0:01:10]} 21. Nd5 {[%emt 0:01:13]} cxd5 {[%emt 0:01:08]} 22. exd5 {[%emt 0:00:26]} Bf7 {[%emt 0:00:43]} 23. Rae1 {[%emt 0:00:49]} Qd8 {[%emt 0:00:57]} 24. d6 {[%emt 0:00:28]} Bxd6 {[%emt 0:01:49]} 25. cxd6 {[%emt 0:00:26]} Nb6 {[%emt 0:00:26]} 26. Bxb7 {[%emt 0:02:42]} Ra7 {[%emt 0:01:00]} 27. Bg2 {[%emt 0:00:39]} Qxd6 {[%emt 0:00:39]} 28. Be3 {[%emt 0:00:32]} Rc8 {[%emt 0:01:53]} 29. Bc5 {[%emt 0:00:38]} Qd8 {[%emt 0:01:51]} 30. Bxb6 {[%emt 0:00:39]} Rxc2 {[%emt 0:00:57]} 31. Bxd8 {[%emt 0:00:28]} Rd7 {[%emt 0:00:29]} 32. Rd1 {[%emt 0:01:08]} Rxd1 33. Rxd1 {[%emt 0:00:26]} Rxa2 {[%emt 0:01:12]} 34. Bd5 {[%emt 0:00:44]} Rb2 {[%emt 0:00:38]} 35. Ba5 {[%emt 0:00:36]} Rf2 {[%emt 0:00:33]} 36. Bxf7+ Kxf7 {[%emt 0:00:25]} 37. Rd6 {[%emt 0:01:48]} Rxf4 {[%emt 0:00:27]} 38. Rxa6 {[%emt 0:00:25]} Rf1+ {[%emt 0:00:32]} 39. Kg2 {[%emt 0:00:26]} Rb1 {[%emt 0:00:26]} 40. Ra7+ {[%emt 0:00:31]} Kg6 {[%emt 0:00:29]} 41. Rb7 {[%emt 0:00:26]} Rb2+ {[%emt 0:00:27]} 42. Kg3 {[%emt 0:00:41]} Rb3+ {[%emt 0:00:26]} 43. Kg2 {[%emt 0:00:27]} Rb2+ {[%emt 0:00:26]} 44. Kg3 {[%emt 0:00:26]} Rb3+ {[%emt 0:00:28]} 45. Kf4 {[%emt 0:00:46]} Rh3 {[%emt 0:00:32]} 46. b5 {[%emt 0:01:06]} Rxh2 {[%emt 0:00:27]} 47. b6 {[%emt 0:00:27]} Rb2 {[%emt 0:00:28]} 48. Ra7 {[%emt 0:00:26]} h5 {[%emt 0:00:46]} 49. b7 {[%emt 0:00:28]} h4 {[%emt 0:00:26]} 50. Bc7 {[%emt 0:00:27]} 1-0